bitfinex-derivatives/quotes_ETHF0:USTF0_20250502
["timestamp","ask_amount","ask_price","bid_price","bid_amount"]
[1746210333171,1.51098507,1851.9,1851.8,1.07961]
[1746210333364,3.17868507,1851.9,1851.8,1.07961]
[1746210333669,2.09904507,1851.9,1851.8,1.07961]
[1746210333870,0.43134507,1851.9,1851.8,2.69601]
[1746210334062,0.43134507,1851.9,1851.8,6.39201]
[1746210337064,0.43134507,1851.9,1851.8,11.39201]
[1746210337473,0.43134507,1851.9,1851.8,6.39201]
[1746210338969,0.43134507,1851.9,1851.8,9.88301]
[1746210339771,1.51093507,1851.9,1851.8,9.88301]
[1746210341366,0.43134507,1851.9,1851.8,9.88301]
[1746210342073,2.15904507,1851.9,1851.8,9.88301]
[1746210343268,3.23863507,1851.9,1851.8,9.88301]
[1746210343568,3.23863507,1851.9,1851.8,8.26661]
[1746210345282,2.15904507,1851.9,1851.8,8.26661]
[1746210346176,3.23863507,1851.9,1851.8,8.26661]
[1746210346367,2.15904507,1851.9,1851.8,8.26661]
[1746210346563,2.15904507,1851.9,1851.8,4.77561]
[1746210347776,2.15904507,1851.9,1851.8,6.38401]
[1746210348179,3.23863507,1851.9,1851.8,6.38401]
[1746210348378,3.23863507,1851.9,1851.8,4.77561]
[1746210348580,2.15904507,1851.9,1851.8,4.77561]
[1746210348882,2.15904507,1851.9,1851.8,6.38401]
[1746210349069,0.43134507,1851.9,1851.8,6.38401]
[1746210352583,1.51093507,1851.9,1851.8,6.38401]
[1746210357781,1.51093507,1851.9,1851.8,4.77565]
[1746210357988,4.10553507,1851.9,1851.8,3.696]
[1746210358180,1.07965,1851.8,1851.7,4.28749]
[1746210358377,2.80935,1851.8,1851.7,4.28749]
[1746210358784,3.24069507,1851.8,1851.7,3.2078]
[1746210358981,1.07976,1851.6,1851.5,3.2078]
[1746210359385,1.51110507,1851.6,1851.5,3.2078]
[1746210359579,3.23510507,1851.6,1851.5,3.2078]
[1746210360181,3.23510507,1851.6,1851.5,4.28762]
[1746210361776,3.23510507,1851.6,1851.5,3.2078]
[1746210361982,1.07988,1851.4,1851.3,10.37506438]
[1746210362276,1.51122507,1851.4,1851.3,10.37506438]
[1746210362482,1.51122507,1851.4,1851.3,7.16726438]
[1746210362991,1.08006,1851.1,1851.0,7.90447]
[1746210363188,1.08006,1851.1,1851.0,8.11047]
[1746210364090,1.51140507,1851.1,1851.0,8.11047]
[1746210364787,0.43134507,1851.1,1851.0,8.11047]
[1746210364994,1.51140507,1851.1,1851.0,8.11047]
[1746210365489,0.43134507,1851.1,1851.0,8.11047]
[1746210367585,1.51140507,1851.1,1851.0,8.11047]
[1746210367794,0.43134507,1851.1,1851.0,8.11047]
[1746210368095,1.51140507,1851.1,1851.0,8.11047]
[1746210368293,0.43134507,1851.1,1851.0,8.11047]
[1746210369095,0.43134507,1851.1,1851.0,4.5618]
[1746210369096,1.51140507,1851.1,1851.0,4.5618]
[1746210369405,3.25570507,1851.1,1851.0,5.64191]
[1746210369688,3.25570507,1851.1,1851.0,4.5618]
[1746210369894,1.51140507,1851.1,1851.0,5.64191]
[1746210370089,1.51140507,1851.1,1851.0,7.26591]
[1746210370993,0.43134507,1851.1,1851.0,7.26591]
[1746210371193,1.51140507,1851.1,1851.0,7.26591]
[1746210371394,0.43134507,1851.1,1851.0,7.26591]
[1746210371897,1.51140507,1851.1,1851.0,7.26591]
[1746210373994,0.43134507,1851.1,1851.0,7.26591]
[1746210374202,1.51140507,1851.1,1851.0,7.26591]
[1746210375099,1.51031608,1851.1,1851.0,7.26591]
[1746210375405,1.51031608,1851.1,1851.0,6.1858]
[1746210375590,1.510329,1851.1,1851.0,7.26591]
[1746210376600,0.430269,1851.1,1851.0,7.26591]
[1746210378302,0.430269,1851.1,1851.0,10.75791]
[1746210378598,0.430269,1851.1,1851.0,15.75791]
[1746210378799,3.59770866,1851.5,1851.4,1.07988]
[1746210379202,3.59770866,1851.5,1851.4,45.57588]
[1746210379403,3.59770866,1851.5,1851.4,48.81918]
[1746210381508,1.07972,1851.7,1851.6,1.07976]
[1746210381807,1.07972,1851.7,1851.6,4.28756]
[1746210382104,1.07961,1851.9,1851.8,1.07965]
[1746210382305,1.07961,1851.9,1851.8,4.28745]
[1746210382709,1.07961,1851.9,1851.8,6.89425]
[1746210383101,1.07961,1851.9,1851.8,10.59025]
[1746210384406,2.66601,1851.9,1851.8,10.59025]
[1746210388507,7.66601,1851.9,1851.8,6.9038]
[1746210388909,2.66601,1851.9,1851.8,6.9038]
[1746210389117,2.66601,1851.9,1851.8,3.2078]
[1746210389507,2.66601,1851.9,1851.8,4.28745]
[1746210389707,2.66601,1851.9,1851.8,3.2078]
[1746210390213,2.66601,1851.9,1851.8,6.9038]
[1746210390403,2.66601,1851.9,1851.8,7.98345]
[1746210390811,2.66601,1851.9,1851.8,6.9038]
[1746210391014,2.66601,1851.9,1851.8,7.98345]
[1746210391213,3.09226184,1851.9,1851.8,4.28745]
[1746210391416,1.07965,1851.8,1851.7,1.07966]
[1746210391619,1.6678,1851.8,1851.7,1.07966]
[1746210391821,3.17370184,1851.8,1851.7,1.07966]
[1746210392222,3.17370184,1851.8,1851.7,4.77566]
[1746210393224,2.09405184,1851.8,1851.7,6.42976]
[1746210393430,3.17370184,1851.8,1851.7,6.42976]
[1746210402136,3.16881359,1851.8,1851.7,6.42976]
[1746210402340,3.16881359,1851.8,1851.7,2.73376]
[1746210405633,3.16881359,1851.8,1851.7,2.73381]
[1746210406733,1.07971,1851.7,1851.6,3.2078]
[1746210406934,4.02136184,1851.7,1851.6,4.28756]
[1746210407431,3.20246184,1851.7,1851.6,4.28756]
[1746210407631,3.20246184,1851.7,1851.6,6.02986]
[1746210410029,3.20246184,1851.7,1851.5,3.696]
[1746210410335,2.35641184,1851.6,1851.5,3.696]
[1746210411232,1.07982,1851.5,1851.4,2.73844]
[1746210411434,1.50607184,1851.5,1851.4,2.73844]
[1746210412534,1.50607184,1851.5,1851.4,1.6586]
[1746210412833,1.50607184,1851.5,1851.4,2.73848]
[1746210413432,1.50607184,1851.5,1851.4,1.6586]
[1746210413639,1.07988,1851.4,1851.3,4.8394]
[1746210413934,1.07988,1851.4,1851.3,0.8215]
[1746210414136,1.50613184,1851.4,1851.3,1.90144]
[1746210415228,1.07994,1851.3,1851.2,2.78116]
[1746210415428,1.07994,1851.3,1851.2,3.60796]
[1746210415730,1.50619184,1851.3,1851.2,3.60796]
[1746210416130,1.50619184,1851.3,1851.2,7.30396]
[1746210416637,0.42625184,1851.3,1851.2,7.30396]
[1746210416834,1.50619184,1851.3,1851.2,7.30396]
[1746210417028,0.42625184,1851.3,1851.2,7.30396]
[1746210417231,1.50619184,1851.3,1851.2,7.30396]
[1746210418636,0.42625184,1851.3,1851.2,7.30396]
[1746210418839,1.50619184,1851.3,1851.2,7.30396]
[1746210419236,1.50732657,1851.3,1851.2,7.30396]
[1746210419425,1.50731934,1851.3,1851.2,7.304]
[1746210419630,1.50731934,1851.3,1851.2,6.224]
[1746210419831,1.50731934,1851.3,1851.2,7.304]
[1746210420026,1.07994,1851.3,1851.2,4.5228]
[1746210420232,1.08,1851.2,1851.1,5.14003]
[1746210420432,0.42734269,1851.2,1851.1,5.14003]
[1746210420628,0.42734269,1851.2,1851.1,6.72413]
[1746210420840,1.50734269,1851.2,1851.1,6.72413]
[1746210422740,1.50734269,1851.2,1851.1,3.51633]
[1746210422941,1.50734269,1851.2,1851.1,6.72413]
[1746210425541,1.50734269,1851.2,1851.1,3.2078]
[1746210426743,1.50734269,1851.2,1851.1,4.28786]
[1746210428046,1.50734269,1851.2,1851.1,3.2078]
[1746210428238,1.50700103,1851.2,1851.1,3.2078]
[1746210428944,1.50700103,1851.2,1851.1,4.28786]
[1746210429140,1.50700103,1851.2,1851.1,6.77796]
[1746210430249,1.50692952,1851.2,1851.1,6.77796]
[1746210434443,0.42692952,1851.2,1851.1,6.77796]
[1746210437339,0.42692952,1851.2,1851.1,11.77796]
[1746210438252,1.50692952,1851.2,1851.1,11.77796]
[1746210438451,0.42692952,1851.2,1851.1,11.77796]
[1746210438647,1.50692952,1851.2,1851.1,6.77796]
[1746210443951,0.42692952,1851.2,1851.1,6.77796]
[1746210444254,1.50692952,1851.2,1851.1,6.77796]
[1746210444956,0.42692952,1851.2,1851.1,6.77796]
[1746210447752,1.50692952,1851.2,1851.1,6.77796]
[1746210454863,1.50692952,1851.2,1851.1,47.57796]
[1746210455361,1.50692952,1851.2,1851.1,44.37016]
[1746210455562,1.50692952,1851.2,1851.1,47.57796]
[1746210458667,1.50692952,1851.2,1851.1,44.37016]
[1746210458863,1.50692952,1851.2,1851.1,47.57796]
[1746210461373,3.08832952,1851.2,1851.1,47.57796]
[1746210462469,3.08832952,1851.2,1851.1,46.4979]
[1746210462669,3.08832952,1851.2,1851.1,44.0078]
[1746210462870,1.08006,1851.1,1851.0,4.5014]
[1746210463065,3.57036,1851.1,1851.0,3.696]
[1746210463270,1.08017,1850.9,1850.8,9.06768438]
[1746210463570,1.50709952,1850.9,1850.8,9.06768438]
[1746210464070,1.50709952,1850.9,1850.8,17.60638438]
[1746210464469,1.50709952,1850.9,1850.8,10.43912]
[1746210467575,1.50709952,1850.9,1850.8,8.80422]
[1746210467767,2.34129952,1850.9,1850.8,5.59643]
[1746210468170,2.34129952,1850.9,1850.8,7.724]
[1746210468375,2.34129952,1850.9,1850.8,6.9038]
[1746210468673,2.34129952,1850.9,1850.8,7.98403]
[1746210470870,2.34129952,1850.9,1850.8,6.9038]
[1746210471174,2.34129952,1850.9,1850.8,3.696]
[1746210471377,2.34129952,1850.9,1850.8,4.77623]
[1746210472175,4.01279952,1850.9,1850.8,4.77623]
[1746210472376,4.01279952,1850.9,1850.8,7.98403]
[1746210473681,3.17859952,1850.9,1850.8,7.98403]
[1746210474472,0.42692952,1850.9,1850.8,7.98403]
[1746210474677,0.42692952,1850.9,1850.8,12.98403]
[1746210475273,0.42692952,1850.9,1850.8,53.78403]
[1746210478786,0.42692952,1850.9,1850.8,48.78403]
[1746210478983,0.42692952,1850.9,1850.8,53.78403]
[1746210480585,5.30150866,1851.4,1851.3,1.07994]
[1746210480771,6.38142866,1851.4,1851.3,1.07994]
[1746210481080,6.38142866,1851.4,1851.3,4.77594]
[1746210481386,6.38142866,1851.4,1851.3,6.39054]
[1746210481882,2.78372,1851.4,1851.3,6.39054]
[1746210484680,7.78372,1851.4,1851.3,3.696]
[1746210484884,8.59932,1851.4,1851.3,3.696]
[1746210485277,1.08006,1851.1,1851.0,1.0801]
[1746210485782,1.08006,1851.1,1851.0,4.2879]
[1746210485983,2.78644,1851.2,1851.1,1.08006]
[1746210486286,2.78644,1851.2,1851.1,3.56596]
[1746210486583,2.78644,1851.2,1851.1,4.39066]
[1746210491487,2.78644,1851.2,1851.1,3.3106]
[1746210492082,2.78644,1851.2,1851.1,1.6269]
[1746210492283,2.78644,1851.2,1851.1,0.8022]
[1746210492690,3.20970887,1851.2,1851.1,0.8022]
[1746210493085,1.08006,1851.1,1851.0,4.5519]
[1746210493382,3.23562887,1851.1,1851.0,3.696]
[1746210494489,3.23562887,1851.1,1851.0,7.98391]
[1746210494692,0.42326887,1851.1,1851.0,9.59301]
[1746210497387,1.50332887,1851.1,1851.0,9.59301]
[1746210498796,3.11232887,1851.1,1851.0,9.59301]
[1746210502194,0.42326887,1851.1,1851.0,9.59301]
[1746210502399,1.50332887,1851.1,1851.0,9.59301]
[1746210502593,0.42326887,1851.1,1851.0,9.59301]
[1746210502799,3.59770866,1851.3,1851.0,14.59301]
[1746210503008,3.59770866,1851.3,1851.2,4.2878]
[1746210503197,3.59770866,1851.3,1851.2,11.4678]
[1746210503496,3.59770866,1851.3,1851.2,58.9115]
[1746210504892,3.59770866,1851.3,1851.2,53.9115]
[1746210506203,1.07977,1851.6,1851.5,1.07982]
[1746210506505,1.07977,1851.6,1851.5,4.28762]
[1746210506800,2.68305,1851.7,1851.6,1.07976]
[1746210509504,1.6033,1851.7,1851.6,1.07976]
[1746210509902,2.68301,1851.7,1851.6,2.79286]
[1746210510800,4.67740866,1851.8,1851.7,1.07971]
[1746210511003,6.41410866,1851.8,1851.7,2.79281]
[1746210511199,6.41410866,1851.8,1851.7,6.48881]
[1746210512201,2.8164,1851.8,1851.7,6.48881]
[1746210512401,2.8164,1851.8,1851.7,3.696]
[1746210514702,2.8164,1851.8,1851.7,4.77571]
[1746210519808,2.8164,1851.8,1851.7,3.696]
[1746210521210,1.07976,1851.6,1851.5,5.14772]
[1746210522010,1.94406,1851.6,1851.5,5.14772]
[1746210522309,1.94406,1851.6,1851.5,8.84372]
[1746210523309,1.94406,1851.6,1851.5,3.696]
[1746210523514,1.08,1851.2,1851.1,5.15902]
[1746210523704,1.07999,1851.3,1851.2,1.07994]
[1746210524009,1.07999,1851.3,1851.2,3.51044]
[1746210524210,2.80371,1851.4,1851.3,1.07994]
[1746210524509,2.80371,1851.4,1851.2,5.60146]
[1746210524510,1.07994,1851.3,1851.2,5.60146]
[1746210524710,2.80374,1851.3,1851.2,4.77596]
[1746210525115,2.80374,1851.3,1851.2,6.38096]
[1746210526112,2.80374,1851.3,1851.2,4.77596]
[1746210528219,2.80374,1851.3,1851.2,3.696]
[1746210528411,2.80374,1851.3,1851.2,4.776]
[1746210531522,2.80374,1851.3,1851.2,3.696]
[1746210532018,2.80374,1851.3,1851.2,4.776]
[1746210532916,2.80374,1851.3,1851.2,6.4994]
[1746210534519,2.80374,1851.3,1851.2,3.696]
[1746210534720,2.80374,1851.3,1851.2,4.776]
[1746210535716,2.80374,1851.3,1851.2,3.696]
[1746210538520,2.80374,1851.3,1851.2,4.776]
[1746210540021,2.80374,1851.3,1851.2,7.9838]
[1746210540225,1.07992,1851.4,1851.3,1.07988]
[1746210540524,1.07992,1851.4,1851.3,1.94498]
[1746210541127,4.67757866,1851.5,1851.4,1.07988]
[1746210541425,4.67757866,1851.5,1851.4,1.94258]
[1746210542126,4.67757866,1851.5,1851.4,5.63858]
[1746210542923,1.07987,1851.5,1851.4,5.63858]
[1746210544923,4.67747866,1851.6,1851.5,1.07982]
[1746210545122,4.67747866,1851.6,1851.5,4.77582]
[1746210545620,6.30687866,1851.6,1851.5,4.77582]
[1746210548024,4.67747866,1851.6,1851.5,4.77582]
[1746210549330,1.07977,1851.6,1851.5,4.77582]
[1746210550331,6.41784866,1851.7,1851.6,1.07976]
[1746210550633,6.41784866,1851.7,1851.6,1.91496]
[1746210550832,6.41784866,1851.7,1851.6,3.61126]
[1746210552328,3.59770866,1851.7,1851.6,6.81906]
[1746210554537,3.59770866,1851.7,1851.6,11.81906]
[1746210555034,3.59770866,1851.7,1851.6,6.81906]
[1746210557838,4.67727866,1852.0,1851.9,1.07959]
[1746210558230,4.67727866,1852.0,1851.9,2.83159]
[1746210558434,6.34587866,1852.0,1851.9,2.83159]
[1746210559133,6.34587866,1852.0,1851.9,6.52759]
[1746210560946,5.26630866,1852.0,1851.9,6.52759]
[1746210561146,6.34583866,1852.0,1851.9,6.52759]
[1746210562439,5.26630866,1852.0,1851.9,6.52759]
[1746210562640,6.34583866,1852.0,1851.9,6.52759]
[1746210563149,2.74813,1852.0,1851.9,6.52759]
[1746210564150,2.74813,1852.0,1851.9,3.696]
[1746210564342,3.54523,1852.0,1851.9,4.77559]
[1746210565552,1.6686,1852.0,1851.9,4.77559]
[1746210565851,1.6686,1852.0,1851.9,6.46359]
[1746210566745,1.6686,1852.0,1851.9,9.67139]
[1746210567852,2.74813,1852.0,1851.9,9.67139]
[1746210568239,1.6686,1852.0,1851.9,9.67139]
[1746210569453,2.74813,1852.0,1851.9,9.67139]
[1746210569748,1.6686,1852.0,1851.9,9.67139]
[1746210571155,2.74813,1852.0,1851.9,9.67139]
[1746210572056,2.74813,1852.0,1851.9,7.98339]
[1746210573957,3.18599718,1852.0,1851.9,7.98339]
[1746210576762,2.74813,1852.0,1851.9,7.98339]
[1746210577064,3.18625445,1852.0,1851.9,7.98339]
[1746210581061,3.18625445,1852.0,1851.9,9.72519]
[1746210582762,3.18718643,1852.0,1851.9,9.72519]
[1746210583466,3.18725629,1852.0,1851.9,9.72519]
[1746210584067,3.18725629,1852.0,1851.9,7.98339]
[1746210585066,2.74813,1852.0,1851.9,7.98339]
[1746210585261,3.1873242,1852.0,1851.9,7.98339]
[1746210587469,3.1873242,1852.0,1851.9,9.56399]
[1746210589567,3.1873242,1852.0,1851.9,6.35619]
[1746210590569,1.5187242,1852.0,1851.9,6.35619]
[1746210593471,3.1399242,1852.0,1851.9,6.35619]
[1746210593669,8.1399242,1852.0,1851.9,3.696]
[1746210593868,11.6169242,1852.0,1851.9,0.3433735]
[1746210594075,11.6169242,1852.0,1851.9,3.5e-06]
[1746210594266,1.07988,1851.4,1851.3,8.76406438]
[1746210594465,1.5190742,1851.4,1851.3,8.76406438]
[1746210594667,1.5190742,1851.4,1851.3,7.16726438]
[1746210595167,3.15896018,1851.4,1851.3,7.16726438]
[1746210596572,1.08,1851.2,1851.1,5.88464]
[1746210596767,1.51868018,1851.2,1851.1,5.88464]
[1746210597173,1.51868018,1851.2,1851.1,2.67684]
[1746210597677,1.51868018,1851.2,1851.1,1.5968]
[1746210598671,1.51790489,1851.2,1851.1,1.5968]
[1746210599572,2.38750489,1851.2,1851.1,1.5968]
[1746210600077,0.43790489,1851.2,1851.1,1.5968]
[1746210600266,0.43790489,1851.2,1851.1,10.88466]
[1746210600467,0.43790489,1851.2,1851.1,5.88466]
[1746210601769,1.51790489,1851.2,1851.1,5.88466]
[1746210601982,0.43790489,1851.2,1851.1,5.88466]
[1746210605578,0.43790489,1851.2,1851.1,10.88466]
[1746210607871,0.43790489,1851.2,1851.1,5.88466]
[1746210611783,1.51790489,1851.2,1851.1,5.88466]
[1746210612282,0.43790489,1851.2,1851.1,5.88466]
[1746210613282,2.81713,1851.4,1851.3,1.07994]
[1746210613482,3.25437931,1851.4,1851.3,1.07994]
[1746210613671,3.25437931,1851.4,1851.3,2.66624]
[1746210614381,3.25437931,1851.4,1851.3,6.36224]
[1746210615684,3.25437931,1851.4,1851.3,5.2823]
[1746210616483,3.25437931,1851.4,1851.3,6.36224]
[1746210617278,3.25437931,1851.4,1851.3,3.696]
[1746210617884,3.25437931,1851.4,1851.3,4.77594]
[1746210618283,3.25437931,1851.4,1851.3,1.07994]
[1746210619082,3.25437931,1851.4,1851.3,4.77594]
[1746210621686,3.25437931,1851.4,1851.3,3.696]
[1746210621890,4.04397931,1851.4,1851.3,3.696]
[1746210623386,1.07994,1851.3,1851.2,4.776]
[1746210623688,1.51718931,1851.3,1851.2,6.5108]
[1746210623886,0.43724931,1851.3,1851.2,6.5108]
[1746210624187,1.07981,1851.6,1851.5,1.07979]
[1746210624391,2.75121,1851.6,1851.5,1.07979]
[1746210624583,2.75121,1851.6,1851.5,3.59209]
[1746210625088,2.75121,1851.6,1851.5,7.28809]
[1746210627683,1.6714,1851.6,1851.5,7.28809]
[1746210628391,7.89035793,1851.9,1851.8,1.07965]
[1746210628692,1.07968,1851.8,1851.7,1.07967]
[1746210628890,2.80478,1851.8,1851.7,1.93947]
[1746210629091,2.80478,1851.8,1851.7,5.63547]
[1746210630185,2.80478,1851.8,1851.7,7.32857]
[1746210630585,2.80478,1851.8,1851.7,3.696]
[1746210630788,4.43318,1851.8,1851.7,3.696]
[1746210631190,1.07971,1851.7,1851.6,1.07975]
[1746210631489,2.69431,1851.7,1851.6,1.07975]
[1746210631793,2.69431,1851.7,1851.5,6.2051]
[1746210631794,1.07976,1851.6,1851.5,7.2849]
[1746210631999,2.69436,1851.6,1851.5,7.2849]
[1746210633699,1.6146,1851.6,1851.5,7.2849]
[1746210633890,2.69436,1851.6,1851.5,7.2849]
[1746210635896,2.69436,1851.6,1851.5,6.2051]
[1746210636096,3.12336341,1851.6,1851.5,3.696]
[1746210637194,1.07982,1851.5,1851.4,3.2078]
[1746210637392,4.51332,1851.5,1851.4,3.2078]
[1746210637695,4.94232341,1851.5,1851.4,3.2078]
[1746210638095,4.94232341,1851.5,1851.4,6.9038]
[1746210640704,4.94232341,1851.5,1851.4,4.77588]
[1746210640903,1.50882341,1851.5,1851.4,4.77588]
[1746210641100,0.42900341,1851.5,1851.4,4.77588]
[1746210641403,1.50882341,1851.5,1851.4,6.49068]
[1746210645203,1.50882341,1851.5,1851.4,5.4108]
[1746210645400,1.50882341,1851.5,1851.4,3.696]
[1746210645702,4.90782341,1851.5,1851.4,3.696]
[1746210647204,1.07988,1851.4,1851.3,3.66543]
[1746210647399,2.78368,1851.4,1851.3,3.66543]
[1746210647599,3.21268341,1851.4,1851.3,3.66543]
[1746210647796,1.50888341,1851.4,1851.3,3.66543]
[1746210648197,1.50888341,1851.4,1851.3,7.36143]
[1746210649004,5.11182134,1851.4,1851.3,7.36143]
[1746210650505,5.11182134,1851.4,1851.3,6.2815]
[1746210650805,6.76792134,1851.4,1851.3,6.2815]
[1746210651905,6.76792134,1851.4,1851.3,7.36144]
[1746210652999,5.11182134,1851.4,1851.3,7.36144]
[1746210654201,5.11182134,1851.4,1851.3,3.696]
[1746210654404,10.26792134,1851.4,1851.3,3.696]
[1746210654609,16.92592134,1851.4,1851.3,3.25875069]
[1746210655204,1.08017,1850.9,1850.8,7.53942]
[1746210655409,1.50917341,1850.9,1850.8,7.53942]
[1746210656207,1.50917341,1850.9,1850.8,11.23542]
[1746210656513,0.42900341,1850.9,1850.8,11.23542]
[1746210658316,2.72555,1851.2,1851.1,1.08006]
[1746210658515,1.08005,1851.2,1851.1,1.08006]
[1746210658710,1.50862465,1851.2,1851.1,1.08006]
[1746210658914,1.50862465,1851.2,1851.1,4.42956]
[1746210659213,0.42857465,1851.2,1851.1,4.42956]
[1746210660110,5.11151258,1851.2,1851.1,4.42956]
[1746210660311,4.03151258,1851.2,1851.1,4.42956]
[1746210661408,5.11151258,1851.2,1851.1,4.42956]
[1746210663614,0.42857465,1851.2,1851.1,4.42956]
[1746210664817,1.50857465,1851.2,1851.1,4.42956]
[1746210665216,1.50894574,1851.2,1851.1,4.42956]
[1746210665617,1.50894574,1851.2,1851.1,3.3495]
[1746210666119,1.50894574,1851.2,1851.1,4.42956]
[1746210666319,2.7981,1851.2,1851.1,4.42956]
[1746210666618,3.22712257,1851.2,1851.1,4.42956]
[1746210666918,3.227125,1851.2,1851.1,4.42956]
[1746210667122,3.227125,1851.2,1851.1,0.8027]
[1746210667319,1.08006,1851.1,1851.0,3.696]
[1746210667619,2.67656,1851.1,1851.0,3.696]
[1746210667820,5.88436,1851.1,1851.0,3.696]
[1746210668022,14.784385,1851.1,1851.0,3.696]
[1746210668213,1.08023,1850.8,1850.7,1.88536]
[1746210668415,0.429025,1850.8,1850.7,44.41776]
[1746210668616,0.429025,1850.8,1850.7,47.62556]
[1746210669225,0.429025,1850.8,1850.7,51.32156]
[1746210672518,0.429025,1850.8,1850.7,56.32156]
[1746210672722,3.60293793,1851.1,1851.0,1.08011]
[1746210673025,3.60293793,1851.1,1851.0,4.28791]
[1746210673522,3.60293793,1851.1,1851.0,6.77771]
[1746210674028,4.68292793,1851.3,1851.0,5.6976]
[1746210674218,4.68292793,1851.3,1851.2,1.08]
[1746210674720,4.68292793,1851.3,1851.2,1.918]
[1746210675024,4.68292793,1851.3,1851.2,5.1258]
[1746210675327,4.68292793,1851.3,1851.2,10.4608]
[1746210676727,1.07999,1851.3,1851.2,10.4608]
[1746210679619,1.07999,1851.3,1851.2,9.3808]
[1746210679821,2.79189,1851.3,1851.2,10.4608]
[1746210680328,2.79189,1851.3,1851.2,9.3808]
[1746210681329,2.79189,1851.3,1851.2,7.253]
[1746210681934,2.79189,1851.3,1851.2,6.173]
[1746210682226,2.79189,1851.3,1851.2,4.534]
[1746210682532,2.79189,1851.3,1851.2,5.614]
[1746210683327,2.79189,1851.3,1851.2,7.2457]
[1746210684130,2.79189,1851.3,1851.2,6.1657]
[1746210684833,3.21674678,1851.3,1851.2,6.1657]
[1746210685331,3.21674678,1851.3,1851.2,3.696]
[1746210685923,3.21674678,1851.3,1851.2,4.776]
[1746210687437,6.81968471,1851.3,1851.2,4.776]
[1746210687625,4.02779471,1851.3,1851.2,4.776]
[1746210688022,4.02779471,1851.3,1851.2,6.4305]
[1746210689134,5.10773471,1851.3,1851.2,6.4305]
[1746210689326,5.10773471,1851.3,1851.2,9.6383]
[1746210689528,4.02779471,1851.3,1851.2,9.6383]
[1746210690728,0.42485678,1851.3,1851.2,9.6383]
[1746210691036,1.50479678,1851.3,1851.2,9.6383]
[1746210693434,0.42485678,1851.3,1851.2,9.6383]
[1746210693636,1.50479678,1851.3,1851.2,9.6383]
[1746210695733,0.42485678,1851.3,1851.2,9.6383]
[1746210695933,1.50479678,1851.3,1851.2,9.6383]
[1746210697544,3.24019678,1851.3,1851.2,9.6383]
[1746210698546,2.16025678,1851.3,1851.2,9.6383]
[1746210699545,3.24019678,1851.3,1851.2,9.6383]
[1746210700450,2.16025678,1851.3,1851.2,9.6383]
[1746210701150,3.24019678,1851.3,1851.2,9.6383]
[1746210701349,2.16025678,1851.3,1851.2,9.6383]
[1746210702749,0.42485678,1851.3,1851.2,9.6383]
[1746210703542,3.60293793,1851.4,1851.3,1.07994]
[1746210703747,3.60293793,1851.4,1851.3,4.50924]
[1746210704149,3.60293793,1851.4,1851.3,13.20524]
[1746210704756,7.20587587,1851.7,1851.6,1.07976]
[1746210704946,9.00734484,1851.8,1851.7,1.07971]
[1746210705147,9.00734484,1851.8,1851.7,4.77571]
[1746210705551,10.08699484,1851.8,1851.7,7.36001]
[1746210708055,1.07965,1851.8,1851.7,7.36001]
[1746210709655,2.72534,1851.9,1851.8,1.07965]
[1746210709858,2.72534,1851.9,1851.8,2.69275]
[1746210710353,2.72534,1851.9,1851.8,6.38875]
[1746210710562,4.28735,1852.0,1851.9,1.07959]
[1746210710853,1.07951,1852.1,1852.0,1.07947]
[1746210711056,2.75961,1852.1,1852.0,1.07947]
[1746210711362,2.75961,1852.1,1852.0,4.77547]
[1746210712151,2.75961,1852.1,1852.0,6.38857]
[1746210712753,1.07946,1852.2,1852.1,1.07944]
[1746210712953,2.65786,1852.2,1852.1,3.63774]
[1746210713360,1.5784,1852.2,1852.1,3.63774]
[1746210713561,8.28726944,1852.3,1852.2,1.07941]
[1746210713760,8.78627944,1852.3,1852.2,3.63531]
[1746210714062,9.86563944,1852.3,1852.2,3.63531]
[1746210714359,9.86563944,1852.3,1852.2,48.13131]
[1746210715559,10.29854647,1852.3,1852.2,48.13131]
[1746210716260,8.72014647,1852.3,1852.2,48.13131]
[1746210717164,1.51226703,1852.3,1852.2,48.13131]
[1746210718464,3.09696703,1852.3,1852.2,3.696]
[1746210718665,3.93016703,1852.3,1852.2,3.696]
[1746210719269,1.07947,1852.1,1852.0,41.87949]
[1746210719473,1.07947,1852.1,1852.0,40.8]
[1746210719861,2.66417,1852.1,1852.0,41.87953]
[1746210720064,3.09707703,1852.1,1852.0,41.87953]
[1746210720264,3.09707703,1852.1,1852.0,45.57553]
[1746210720560,3.09707703,1852.1,1852.0,4.77553]
[1746210720967,3.09707703,1852.1,1852.0,3.696]
[1746210721168,3.09707703,1852.1,1852.0,4.77553]
[1746210721365,3.09707703,1852.1,1852.0,3.696]
[1746210721871,11.30487703,1852.1,1852.0,3.696]
[1746210722055,8.09707703,1852.1,1852.0,3.696]
[1746210722259,1.07959,1851.9,1851.8,1.07962]
[1746210722561,1.51241897,1851.9,1851.8,1.07962]
[1746210723062,1.51241897,1851.9,1851.8,4.77562]
[1746210723268,1.51241897,1851.9,1851.8,6.37982]
[1746210725662,3.21391897,1851.9,1851.8,6.37982]
[1746210725862,3.21391897,1851.9,1851.8,3.696]
[1746210726059,4.05371897,1851.9,1851.8,3.696]
[1746210726770,12.26151897,1851.9,1851.8,3.696]
[1746210727074,1.07987,1851.5,1851.4,1.07986]
[1746210727265,1.07981,1851.6,1851.5,1.0798]
[1746210727464,1.07973,1851.7,1851.6,1.07972]
[1746210727659,3.23485096,1851.7,1851.6,1.07972]
[1746210728271,3.23494493,1851.7,1851.6,1.07972]
[1746210728770,3.23494493,1851.7,1851.6,4.48942]
[1746210728970,3.23494493,1851.7,1851.6,0.8508]
[1746210729166,1.07976,1851.6,1851.5,3.696]
[1746210729368,3.23497493,1851.6,1851.5,3.696]
[1746210729575,3.23497493,1851.6,1851.5,4.77582]
[1746210730069,3.23497493,1851.6,1851.5,6.46242]